bitfinex-derivatives/quotes_ETHF0:USTF0_20260310
["timestamp","ask_amount","ask_price","bid_price","bid_amount"]
[1773160386255,0.56972044,2079.8,2078.9,0.54835279]
[1773160389360,0.56972044,2079.8,2079.1,0.54315315]
[1773160390169,0.56972044,2079.8,2078.9,0.00519964]
[1773160390373,0.56972044,2079.6,2078.7,6.296]
[1773160390564,0.56972044,2079.6,2078.1,8.412]
[1773160390565,0.56972044,2079.6,2078.5,0.54315315]
[1773160390865,0.56972044,2079.4,2078.5,0.54315315]
[1773160391266,0.56972044,2079.4,2078.2,0.78368315]
[1773160391466,0.56972044,2079.4,2078.3,0.54315315]
[1773160392965,0.56972044,2079.4,2078.4,0.2405]
[1773160393266,0.56972044,2079.4,2078.5,0.54315315]
[1773160393659,0.56972044,2079.4,2078.4,0.78365315]
[1773160393859,0.56972044,2079.4,2078.5,0.54315315]
[1773160394570,0.56972044,2079.4,2078.4,0.54315315]
[1773160394765,0.56972044,2079.3,2078.4,0.54315315]
[1773160395269,0.56972044,2079.3,2078.2,0.5490586]
[1773160395476,0.56972044,2079.1,2078.2,0.00590545]
[1773160395863,0.56972044,2079.1,2078.2,0.5490586]
[1773160396462,0.56972044,2079.1,2078.2,0.00590545]
[1773160396867,0.56972044,2079.1,2078.2,0.5490586]
[1773160397268,0.56972044,2079.1,2078.2,0.00590545]
[1773160397566,0.56972044,2079.1,2078.2,0.5490586]
[1773160407972,0.54611485,2078.9,2077.8,6.85454536]
[1773160408172,0.54611485,2078.7,2077.3,0.55754536]
[1773160408373,0.54611485,2078.5,2077.4,0.55754536]
[1773160408677,0.54611485,2078.3,2077.4,0.55754536]
[1773160408872,0.54611485,2078.8,2077.6,0.55754536]
[1773160409071,0.54949417,2078.8,2077.6,0.56219155]
[1773160409273,0.54611485,2078.6,2077.6,0.56219155]
[1773160412573,0.54611485,2078.6,2077.6,0.00464619]
[1773160413179,0.54611485,2078.4,2077.2,0.55754536]
[1773160414179,0.54611485,2078.4,2077.2,0.56168996]
[1773160415279,0.54611485,2078.2,2077.2,0.56168996]
[1773160415676,0.54611485,2078.0,2077.2,0.0041446]
[1773160416183,0.54611485,2077.8,2077.2,0.0041446]
[1773160416378,0.54611485,2077.8,2076.9,0.55754536]
[1773160417277,0.54611485,2077.8,2076.9,0.56285489]
[1773160417879,0.54611485,2078.4,2077.4,0.55754536]
[1773160422488,0.24052,2078.3,2077.4,0.55754536]
[1773160422688,0.54611485,2078.0,2077.0,0.55754536]
[1773160423384,0.24056,2077.9,2077.0,0.55754536]
[1773160423591,0.54611485,2077.8,2076.9,0.56285489]
[1773160425190,0.54611485,2078.5,2077.7,0.55754536]
[1773160426191,0.00337932,2078.8,2077.8,0.55754536]
[1773160427389,0.59445444,2078.8,2077.8,0.55754536]
[1773160428496,0.59445444,2078.8,2077.9,0.57567993]
[1773160430596,0.59445444,2078.8,2077.6,0.2406]
[1773160430893,0.59445444,2078.8,2077.7,0.57710083]
[1773160433400,0.55177419,2078.2,2077.2,0.57710083]
[1773160433794,0.24056,2077.9,2076.8,0.57710083]
[1773160434000,0.55177419,2077.8,2076.8,0.57710083]
[1773160434694,0.55177419,2077.8,2076.9,0.58241036]
[1773160438901,0.55177419,2078.3,2076.9,0.58241036]
[1773160439100,0.55177419,2078.1,2076.9,0.58241036]
[1773160440304,0.55177419,2078.1,2077.0,0.57710083]
[1773160440705,0.55177419,2078.3,2077.5,0.57710083]
[1773160441104,0.55177419,2078.7,2077.5,0.57710083]
[1773160441305,0.55177419,2078.6,2077.7,0.57710083]
[1773160441507,0.55515351,2078.8,2077.8,0.57710083]
[1773160444211,0.55177419,2078.6,2077.6,0.57710083]
[1773160445507,0.55177419,2078.6,2077.7,0.57710083]
[1773160445708,0.55515351,2078.8,2077.9,0.57710083]
[1773160445910,0.00337932,2078.8,2078.0,0.57710083]
[1773160446312,0.55177419,2079.5,2078.4,0.57710083]
[1773160446914,0.55177419,2079.5,2078.6,0.57710083]
[1773160447413,0.55556202,2079.5,2078.6,0.58051179]
[1773160448118,0.55177419,2079.9,2078.9,0.57710083]
[1773160448617,0.55177419,2079.9,2079.0,0.57710083]
[1773160449216,0.55701774,2079.9,2079.0,0.57710083]
[1773160449715,0.55701774,2079.9,2078.8,0.57710083]
[1773160449920,0.55701774,2079.9,2078.6,0.58051179]
[1773160449921,0.55177419,2079.7,2078.6,0.58051179]
[1773160451018,0.55701774,2079.9,2078.9,0.57710083]
[1773160453320,0.55701774,2079.9,2078.6,0.24388096]
[1773160453321,0.55177419,2079.8,2078.6,0.00341096]
[1773160453518,0.55177419,2079.6,2078.6,0.00341096]
[1773160453722,0.55177419,2079.4,2078.6,0.00341096]
[1773160454219,0.55177419,2079.6,2078.6,0.58051179]
[1773160454920,0.55177419,2079.8,2078.6,0.58051179]
[1773160455119,0.55177419,2079.8,2078.8,0.57710083]
[1773160455315,0.55177419,2079.8,2078.8,2.77567992]
[1773160455515,0.55177419,2079.8,2078.9,0.57710083]
[1773160456114,0.55177419,2079.8,2078.7,0.57710083]
[1773160458618,0.55177419,2079.4,2078.3,0.57710083]
[1773160459020,0.55177419,2079.4,2078.1,0.57710083]
[1773160459320,0.55177419,2079.4,2078.0,0.5918765]
[1773160459725,0.58198743,2079.2,2078.0,0.5918765]
[1773160459920,0.58198743,2079.2,2078.0,0.59631688]
[1773160460918,0.58198743,2079.2,2078.2,0.5918765]
[1773160461526,0.58198743,2079.7,2078.4,0.5918765]
[1773160464925,0.58198743,2079.5,2078.4,0.5918765]
[1773160467330,0.58198743,2079.8,2078.6,0.5918765]
[1773160468730,0.58198743,2079.8,2078.7,0.5918765]
[1773160470432,0.58198743,2079.8,2078.9,0.5918765]
[1773160472436,0.58198743,2079.8,2078.7,0.5918765]
[1773160473231,0.58198743,2079.8,2078.8,0.5918765]
[1773160480439,0.00524355,2079.9,2079.0,0.5918765]
[1773160480743,0.58723098,2079.9,2079.0,0.5918765]
[1773160481345,0.58198743,2079.7,2078.7,0.5918765]
[1773160482138,0.58198743,2079.5,2078.7,0.5918765]
[1773160484039,0.58198743,2079.5,2078.8,0.5918765]
[1773160484443,0.58198743,2079.8,2078.8,0.5918765]
[1773160484645,0.00524355,2079.9,2079.2,0.5918765]
[1773160484840,0.58723098,2079.9,2079.3,0.5918765]
[1773160486139,0.58723098,2079.9,2078.9,0.5918765]
[1773160486339,0.58198743,2079.7,2078.9,0.5918765]
[1773160486746,0.58198743,2079.5,2078.7,0.5918765]
[1773160487444,0.00524355,2079.9,2078.5,6.53749]
[1773160487445,0.57470483,2079.8,2078.9,0.54758966]
[1773160488943,0.57470483,2079.8,2078.7,0.54758966]
[1773160492155,0.5829683,2079.6,2078.7,0.54758966]
[1773160499754,0.5829683,2079.8,2078.9,0.58008874]
[1773160500459,0.5829683,2079.8,2079.1,0.58008874]
[1773160500661,0.58821185,2079.9,2079.1,0.58008874]
[1773160501563,0.00524355,2079.9,2079.1,0.58008874]
[1773160502061,0.58821185,2079.9,2079.1,0.58008874]
[1773160504564,0.58821185,2079.9,2079.3,0.58008874]
[1773160505468,0.5829683,2080.1,2079.3,0.58008874]
[1773160505767,0.5829683,2080.3,2079.5,0.58008874]
[1773160506662,0.00538397,2080.3,2079.5,0.58506017]
[1773160507061,0.58835227,2080.3,2079.5,0.58506017]
[1773160507459,0.00538397,2080.3,2079.5,0.58506017]
[1773160507659,0.5829683,2080.7,2079.9,0.58008874]
[1773160507860,0.5829683,2081.2,2080.1,0.58008874]
[1773160508061,0.5829683,2081.0,2080.1,0.58008874]
[1773160508671,0.58771901,2081.0,2080.1,0.58008874]
[1773160509568,0.00475071,2081.0,2080.1,0.58008874]
[1773160509969,0.5829683,2081.4,2080.3,0.58008874]
[1773160510866,0.58762521,2081.4,2080.3,0.58008874]
[1773160512073,6.297,2082.0,2080.2,0.2403]
[1773160512074,0.5829683,2082.0,2080.7,0.58008874]
[1773160512275,0.5829683,2082.0,2080.9,0.58008874]
[1773160512769,0.5829683,2082.5,2081.2,0.58008874]
[1773160512965,0.5829683,2082.5,2081.3,0.58008874]
[1773160513271,0.5829683,2082.5,2081.5,0.58008874]
[1773160513272,0.58766369,2082.5,2081.5,0.58008874]
[1773160513568,6.49274369,2082.5,2081.2,0.00473063]
[1773160513772,0.5829683,2081.9,2080.8,0.58008874]
[1773160514168,0.5829683,2081.9,2080.9,0.58008874]
[1773160514968,0.5829683,2081.9,2080.9,0.58466824]
[1773160515971,0.24472539,2082.5,2081.2,0.58008874]
[1773160515972,0.58766369,2082.5,2081.2,0.58008874]
[1773160516469,0.58766369,2082.5,2081.3,0.58008874]
[1773160516670,0.58766369,2082.5,2081.4,0.58008874]
[1773160517470,0.5829683,2082.3,2081.4,0.58008874]
[1773160517875,0.5829683,2082.3,2081.3,6.296]
[1773160518176,0.5829683,2082.1,2081.3,6.296]
[1773160518377,0.5829683,2082.1,2081.4,0.58008874]
[1773160519272,0.59089074,2082.4,2081.4,0.58008874]
[1773160520269,0.00469539,2082.5,2081.4,0.58008874]
[1773160520677,0.00469539,2082.5,2081.3,6.53616]
[1773160520678,0.00469539,2082.5,2081.6,0.57620654]
[1773160520978,0.59089074,2082.8,2081.8,0.57620654]
[1773160521168,0.59089074,2083.6,2082.0,0.57620654]
[1773160521477,0.59089074,2083.4,2082.0,0.57620654]
[1773160521774,0.59432582,2083.4,2082.0,0.57620654]
[1773160522468,0.59089074,2083.2,2082.0,0.57620654]
[1773160523673,0.59089074,2083.2,2082.3,0.57620654]
[1773160524868,0.59432582,2083.4,2082.3,0.57620654]
[1773160526879,0.59432582,2083.4,2082.3,3.34036217]
[1773160527179,0.59432582,2083.4,2082.4,0.57620654]
[1773160527382,0.59432582,2083.4,2082.6,0.57620654]
[1773160529485,0.00343508,2083.4,2082.6,0.57620654]
[1773160529779,0.59432582,2083.4,2082.6,0.57620654]
[1773160529984,0.59432582,2083.4,2082.7,6.292]
[1773160530480,0.59432582,2083.4,2082.8,0.57620654]
[1773160531282,0.59432582,2083.4,2082.8,6.291]
[1773160531581,0.59432582,2083.4,2082.4,6.87190673]
[1773160531582,0.59089074,2083.3,2082.4,6.87190673]
[1773160532081,0.59089074,2083.3,2082.4,6.29570019]
[1773160532277,0.59089074,2083.3,2082.4,6.87190673]
[1773160533286,0.59089074,2083.1,2082.4,6.87190673]
[1773160536582,0.59089074,2082.9,2082.0,6.86620654]
[1773160536782,0.59089074,2082.9,2082.1,0.57620654]
[1773160537684,0.59089074,2082.9,2082.1,0.58160915]
[1773160544793,0.59089074,2083.2,2082.1,0.58160915]
[1773160547687,6.59100633,2083.1,2082.1,0.58160915]
[1773160547991,0.58718558,2083.1,2082.1,0.58160915]
[1773160549885,0.79910294,2083.2,2082.1,0.58160915]
[1773160550087,6.57404878,2083.1,2082.1,0.58160915]
[1773160550291,0.55915294,2083.1,2082.1,0.58160915]
[1773160550788,6.01800995,2083.0,2082.1,0.58160915]
[1773160550996,0.55915294,2082.9,2082.1,0.58160915]
[1773160553091,0.23995,2083.2,2082.1,0.58160915]
[1773160553299,0.55915294,2083.0,2082.1,0.58160915]
[1773160561002,0.55915294,2083.3,2082.6,0.55218839]
[1773160561202,0.55915294,2083.3,2082.7,0.55218839]
[1773160561402,0.55915294,2083.1,2082.3,0.55218839]
[1773160562499,0.55915294,2083.1,2082.5,0.55218839]
[1773160562899,0.55915294,2083.3,2082.5,0.55218839]
[1773160563304,0.55915294,2083.2,2082.5,0.55218839]
[1773160565599,0.55915294,2082.8,2082.1,0.557591]
[1773160565906,0.55915294,2082.6,2082.1,0.557591]
[1773160566205,0.55915294,2082.6,2082.1,0.00540261]
[1773160572307,0.55915294,2082.6,2082.1,0.00011872]
[1773160572504,0.55915294,2082.4,2081.5,0.55218839]
[1773160573611,0.55915294,2082.4,2081.5,0.55695045]
[1773160574507,0.55915294,2082.5,2081.5,0.55695045]
[1773160577914,0.55915294,2082.5,2081.7,0.55218839]
[1773160583416,0.56530888,2083.1,2082.0,0.54996297]
[1773160584515,0.56530888,2083.3,2082.2,0.54996297]
[1773160584815,0.56530888,2083.3,2082.4,0.54996297]
[1773160588117,0.56530888,2083.1,2082.2,0.54996297]
[1773160588316,0.56530888,2082.9,2082.2,0.54996297]
[1773160588516,0.56530888,2082.7,2081.9,0.54996297]
[1773160591423,0.56530888,2082.9,2081.9,0.54996297]
[1773160592019,0.56530888,2083.2,2082.1,0.54996297]
[1773160595025,0.56874396,2083.4,2082.3,0.54996297]
[1773160595427,0.56874396,2083.4,2082.5,0.54996297]
[1773160595628,0.56874396,2083.4,2082.7,0.54996297]
[1773160596123,0.56530888,2084.0,2082.7,0.54996297]
[1773160596314,0.56530888,2083.8,2082.7,0.54996297]
[1773160596915,0.56530888,2083.8,2082.9,0.54996297]
[1773160597124,0.57147449,2083.8,2082.9,0.54996297]
[1773160597517,0.00616561,2083.8,2082.9,0.54996297]
[1773160597721,0.00616561,2083.8,2083.1,0.54996297]
[1773160597924,0.00616561,2083.8,2083.1,0.55500486]
[1773160598123,0.56530888,2084.1,2083.1,0.55500486]
[1773160599331,0.57037417,2084.1,2083.3,0.54996297]
[1773160600428,0.57037417,2084.1,2083.2,6.83996297]
[1773160601924,0.57037417,2084.1,2083.1,0.00504189]
[1773160601925,0.56530888,2083.9,2083.1,0.00504189]
[1773160602131,0.56530888,2083.9,2083.1,0.55500486]
[1773160603427,0.56530888,2083.9,2083.1,0.00504189]
[1773160604328,0.56530888,2083.6,2082.1,0.54996297]
[1773160604627,0.56530888,2082.7,2081.9,0.54996297]
[1773160605532,0.56530888,2082.7,2081.9,0.5555268]
[1773160606330,0.56530888,2082.7,2081.9,0.00556383]
[1773160608333,0.56530888,2082.7,2081.9,0.55210181]
[1773160610332,0.56530888,2082.7,2081.9,0.00556383]
[1773160611234,0.56530888,2082.7,2081.9,0.60028823]
[1773160614737,0.56530888,2082.7,2081.9,0.00556383]
[1773160616833,0.56530888,2082.7,2081.9,0.60028823]
[1773160620037,0.24004,2082.4,2081.9,0.00556383]
[1773160620238,0.5778732,2081.9,2081.2,0.5947244]
[1773160620436,5.90523,2082.4,2080.6,0.5947244]
[1773160620437,0.5778732,2081.7,2080.6,0.5947244]
[1773160620643,0.5778732,2081.5,2080.6,0.5947244]
[1773160620942,0.5778732,2082.0,2080.6,0.5947244]
[1773160621141,0.58316741,2082.0,2080.6,0.59953852]
[1773160621439,0.5778732,2081.6,2080.6,0.59953852]
[1773160622938,0.5778732,2081.4,2080.6,0.00481412]
[1773160623241,9.05588225,2081.9,2079.8,0.24034]
[1773160623242,0.5778732,2081.2,2080.3,0.5947244]
[1773160623442,0.5778732,2081.0,2080.3,0.5947244]
[1773160623642,0.5778732,2081.0,2080.0,0.5947244]
[1773160624238,0.5778732,2081.0,2080.0,0.59996586]
[1773160624436,0.5778732,2080.8,2080.0,0.00524146]
[1773160626246,0.5778732,2080.8,2080.0,0.59996586]
[1773160629950,0.24016,2081.4,2080.0,0.59996586]
[1773160629951,0.5778732,2081.3,2080.0,0.59996586]
[1773160632050,0.5778732,2081.1,2080.0,0.59996586]
[1773160632245,0.5778732,2081.6,2080.2,0.5947244]
[1773160632453,0.5778732,2081.6,2080.4,0.5947244]
[1773160632652,0.5778732,2081.6,2080.6,0.5947244]
[1773160634154,0.5778732,2081.9,2080.6,0.5947244]
[1773160635248,0.5778732,2081.9,2080.8,0.5947244]
[1773160635754,0.00529421,2082.0,2081.0,0.5947244]
[1773160635954,0.58316741,2082.0,2081.2,0.5947244]
[1773160638254,0.00529421,2082.0,2081.2,0.5947244]
[1773160638762,0.58316741,2082.0,2081.2,0.5947244]
[1773160642768,0.00529421,2082.0,2081.2,0.5947244]
[1773160643263,0.55419969,2082.4,2081.3,0.59249648]
[1773160643465,4.24010623,2082.8,2081.3,0.59249648]
[1773160643466,0.55419969,2082.6,2081.3,0.59249648]
[1773160644268,0.55803547,2082.6,2081.3,0.59249648]
[1773160644466,0.55803547,2082.6,2081.5,0.59249648]
[1773160644667,0.55803547,2082.6,2081.5,0.59846432]
[1773160647159,0.24005,2082.3,2081.5,0.59846432]
[1773160647365,0.55419969,2082.2,2081.5,0.59846432]
[1773160650270,0.00383578,2082.6,2081.5,0.59846432]
[1773160650465,0.55419969,2082.5,2081.5,0.59846432]
[1773160651167,0.00383578,2082.6,2081.5,0.59846432]
[1773160651367,0.55803547,2082.6,2081.5,0.59846432]
[1773160653970,0.00383578,2082.6,2081.7,0.59249648]
[1773160654270,0.00383578,2082.6,2081.9,0.59249648]
[1773160655464,0.55419969,2083.1,2081.9,0.59249648]
[1773160656572,0.55794078,2083.1,2081.9,0.59249648]
[1773160658073,0.55794078,2083.1,2082.0,3.00723302]
[1773160658374,0.55794078,2083.1,2082.1,0.59249648]
[1773160658768,0.00374109,2083.1,2082.1,0.59249648]
[1773160660071,0.00374109,2083.1,2082.3,0.59249648]
[1773160660271,3.32134271,2082.8,2081.6,5.35921109]
[1773160660484,3.32134271,2082.8,2081.5,0.59846432]
[1773160660485,3.32134271,2082.5,2081.5,0.00596784]
[1773160660672,0.55419969,2082.3,2081.5,0.00596784]
[1773160661272,0.55861144,2082.3,2081.5,0.00596784]
[1773160663079,0.55861144,2082.3,2081.5,0.59846432]
[1773160664374,0.55861144,2082.3,2081.5,6.89046432]
[1773160665580,0.55861144,2082.3,2081.6,0.59249648]
[1773160672080,0.00441175,2082.3,2081.6,0.59249648]
[1773160672885,0.54522515,2082.3,2081.6,0.59249648]
[1773160673886,0.54522515,2082.3,2081.7,6.292]
[1773160674282,0.54522515,2082.3,2081.5,0.59534054]
[1773160674683,0.54522515,2082.3,2081.5,6.88734054]
[1773160675188,0.54522515,2082.3,2081.5,0.00596784]
[1773160675388,0.5408134,2082.1,2081.5,0.00596784]
[1773160675583,0.5408134,2082.1,2081.5,0.59534054]
[1773160676888,0.54522515,2082.3,2081.5,0.59534054]
[1773160678287,0.00441175,2082.3,2081.5,0.59534054]
[1773160680690,0.5408134,2082.8,2081.5,0.59534054]
[1773160680894,0.5408134,2082.8,2081.6,0.5893727]
[1773160681290,0.5408134,2082.8,2081.8,0.5893727]
[1773160681491,0.5408134,2082.8,2082.0,0.5893727]
[1773160681787,0.54486169,2082.8,2082.2,0.5893727]
[1773160681988,0.00404829,2082.8,2082.2,0.5893727]
[1773160682188,0.5408134,2082.7,2082.2,0.5893727]
[1773160682588,0.5408134,2083.2,2082.2,0.5893727]
[1773160683692,0.00606308,2083.2,2082.2,0.5893727]
[1773160685691,0.00606308,2083.2,2082.4,0.5893727]
[1773160685895,0.5408134,2083.7,2082.7,0.5893727]
[1773160686095,0.5408134,2083.7,2082.9,0.5893727]
[1773160686795,0.54536229,2083.7,2082.9,0.5893727]
[1773160688500,0.00454889,2083.7,2082.9,0.5893727]
[1773160688896,0.5408134,2084.1,2082.9,0.5893727]
[1773160689296,0.5408134,2084.0,2082.9,0.5893727]
[1773160689999,0.54471187,2084.0,2082.9,0.5893727]
[1773160692199,0.54471187,2084.0,2083.0,6.29]
[1773160692398,0.54471187,2084.0,2083.1,0.5893727]
[1773160693006,0.54471187,2084.0,2082.0,18.29734102]
[1773160693007,0.5408134,2083.2,2082.0,0.5893727]
[1773160693302,0.5408134,2083.2,2080.9,5.90924]
[1773160693303,0.5408134,2082.4,2081.8,0.5893727]
[1773160693604,0.5408134,2082.2,2081.5,6.29]
[1773160693800,0.5408134,2082.2,2081.6,6.29]
[1773160694301,0.54696857,2082.2,2081.6,6.29447997]
[1773160694997,0.54696857,2082.2,2081.6,0.00447997]
[1773160695198,0.54696857,2082.2,2081.6,6.289]
[1773160696305,0.54696857,2082.2,2081.6,6.88240453]
[1773160698105,0.54696857,2082.2,2081.7,6.28670202]
[1773160698607,0.54696857,2082.2,2081.7,6.87607472]
[1773160700006,0.54696857,2082.2,2081.8,0.57734739]
[1773160700211,0.59734548,2082.5,2081.8,0.57734739]
[1773160700504,0.59734548,2082.5,2081.9,6.86834739]
[1773160700908,0.59734548,2082.5,2082.0,0.57734739]
[1773160701104,0.60315984,2082.5,2082.0,0.57734739]
[1773160701512,0.00581436,2082.5,2082.0,0.57734739]
[1773160701710,0.60315984,2082.5,2082.0,0.57734739]
[1773160702108,0.24,2082.8,2082.0,0.57734739]
[1773160702508,0.59734548,2082.9,2082.0,0.57734739]
[1773160703310,0.60318654,2082.9,2082.0,0.57734739]
[1773160706309,0.60318654,2082.9,2081.7,0.57734739]
[1773160706514,0.60318654,2082.9,2082.1,6.291]
[1773160706715,0.60318654,2082.9,2082.1,6.86834739]
[1773160710318,0.60318654,2082.9,2082.2,6.291]
[1773160711518,0.60318654,2082.9,2081.7,0.57734739]
[1773160711817,0.60318654,2082.9,2081.9,0.57734739]
[1773160711818,0.59734548,2082.7,2081.9,0.57734739]
[1773160712414,0.59734548,2082.7,2081.8,6.291]
[1773160712617,0.59734548,2081.5,2080.7,0.57734739]
[1773160712816,0.59734548,2081.3,2080.3,6.86834739]
[1773160713015,0.59734548,2081.1,2080.3,6.86834739]
[1773160713617,0.60201402,2081.1,2080.4,0.57734739]
[1773160714022,0.59734548,2081.7,2080.4,0.57734739]
[1773160714209,0.59734548,2081.7,2080.6,0.57734739]
[1773160714611,0.59734548,2081.5,2080.7,6.292]
[1773160715120,0.6018424,2081.5,2080.7,6.86934739]
[1773160716517,0.6018424,2081.5,2080.5,0.57734739]
[1773160716715,0.59734548,2081.1,2080.3,0.58169333]
[1773160718324,0.59734548,2080.7,2079.8,6.87034739]
[1773160718817,0.24025,2080.6,2079.8,0.57734739]
[1773160719018,0.59734548,2080.3,2079.6,0.57734739]
[1773160719218,0.59734548,2080.3,2079.5,6.293]
[1773160719522,0.59734548,2080.3,2079.5,6.87582788]
[1773160720318,0.59734548,2080.3,2079.6,0.57734739]
[1773160721925,0.59734548,2080.1,2078.8,0.57734739]
[1773160722121,0.59734548,2080.1,2079.2,0.57734739]
[1773160722925,0.59734548,2080.1,2079.2,6.87234739]
[1773160723226,0.59734548,2080.1,2079.2,6.87749389]
[1773160723619,0.59734548,2079.9,2079.2,0.0051465]
[1773160723815,0.00509394,2079.9,2079.3,0.57734739]
[1773160724422,0.60243942,2079.9,2079.3,0.57734739]
[1773160724824,0.60243942,2079.9,2079.2,0.0051465]
[1773160725427,0.60243942,2079.9,2079.2,0.58249389]
[1773160726630,0.60243942,2079.9,2078.7,0.57734739]
[1773160727629,0.60243942,2079.9,2078.7,0.58229722]
[1773160729128,0.00509394,2079.9,2078.7,0.58229722]
[1773160729426,0.00509394,2079.9,2078.9,0.54381796]
[1773160730032,0.80688793,2080.5,2079.1,0.54381796]
[1773160730229,0.56661793,2080.5,2079.3,0.54381796]
[1773160730528,0.24021,2081.0,2079.2,0.24041]
[1773160730529,0.56661793,2080.9,2079.5,0.54381796]
[1773160730723,5.9079,2081.5,2079.9,0.54381796]
[1773160730724,0.56661793,2081.1,2079.9,0.54381796]
[1773160730926,0.24015,2081.5,2079.9,0.54381796]
[1773160730927,0.56661793,2081.3,2079.9,0.54381796]
[1773160731136,0.0056149,2081.3,2080.1,0.54381796]
[1773160731435,0.56661793,2081.8,2080.5,0.54381796]
[1773160731634,0.56661793,2082.0,2080.7,0.54381796]
[1773160732031,0.56661793,2082.5,2080.7,0.54381796]
[1773160732336,0.56661793,2082.3,2080.7,0.5486899]
[1773160732831,0.56661793,2082.1,2080.9,0.54381796]
[1773160733138,0.56661793,2082.1,2081.1,0.54381796]
[1773160734636,0.56661793,2082.4,2081.1,0.54381796]
[1773160734832,0.56661793,2082.4,2080.7,6.15502194]
[1773160734833,0.56661793,2082.4,2081.3,0.54381796]
[1773160735030,0.56661793,2082.4,2081.4,6.83881796]
[1773160735226,0.56661793,2082.4,2081.4,0.54381796]
[1773160735426,0.56661793,2082.4,2080.7,0.24511194]
[1773160735427,0.56661793,2082.2,2081.0,0.54381796]
[1773160736031,0.56661793,2082.0,2081.0,0.54381796]
[1773160736629,0.56661793,2081.8,2080.8,0.54381796]
[1773160738836,0.56661793,2082.0,2080.8,0.54381796]
[1773160739637,0.56661793,2082.2,2080.8,0.54381796]
[1773160741045,0.56661793,2082.2,2080.7,6.29987194]
[1773160741046,0.56661793,2082.0,2081.0,0.54381796]
[1773160741239,0.56661793,2081.8,2080.9,6.294]
[1773160741440,0.56661793,2081.8,2081.0,0.54381796]
[1773160742042,0.56661793,2081.9,2081.0,0.54381796]
[1773160745149,0.56661793,2081.8,2081.0,0.54381796]
[1773160745351,0.56661793,2081.8,2081.0,6.83781796]
[1773160745549,0.56661793,2081.8,2081.1,0.54381796]
[1773160746350,0.56661793,2082.3,2081.1,0.54381796]
[1773160747548,0.24005,2082.4,2080.7,0.00487194]
[1773160747549,0.56661793,2081.7,2080.7,0.00487194]
[1773160747743,0.56661793,2080.9,2079.9,0.54381796]
[1773160748852,0.57069107,2080.9,2079.9,0.54764299]
[1773160750548,0.00407314,2080.9,2079.9,0.54764299]
[1773160751351,0.57069107,2080.9,2079.9,0.54764299]
[1773160752752,0.56661793,2080.7,2079.9,0.00382503]
[1773160752950,0.56661793,2080.5,2079.7,0.54381796]
[1773160753155,0.56661793,2080.5,2079.5,0.54381796]
[1773160754252,0.56661793,2080.5,2079.5,0.54881809]
[1773160754653,0.56661793,2080.3,2079.5,0.54881809]
[1773160755458,0.57069107,2080.9,2079.5,0.54881809]
[1773160755653,0.56661793,2080.7,2079.5,0.54881809]
[1773160755857,0.56661793,2080.5,2079.5,0.00500013]
[1773160756262,0.56661793,2080.1,2079.5,0.00500013]
[1773160756461,0.56661793,2080.1,2079.5,0.54881809]
[1773160757552,0.56661793,2080.6,2079.5,0.54881809]
[1773160759163,0.58064017,2080.8,2079.5,0.54881809]
[1773160759363,0.58064017,2080.8,2079.7,0.56011195]
[1773160759571,0.00407314,2080.9,2079.9,0.56011195]
[1773160760856,0.00407314,2080.9,2080.1,0.56011195]
[1773160761059,0.24013,2081.7,2080.3,0.56011195]
[1773160761367,0.58064017,2082.1,2080.5,0.56011195]
[1773160761562,0.58064017,2081.9,2080.7,0.56011195]
[1773160761957,0.58064017,2081.7,2080.7,0.56011195]
[1773160762157,0.58064017,2081.7,2080.8,6.296]
[1773160762460,0.58064017,2081.7,2080.8,0.56011195]
[1773160764163,0.58064017,2081.3,2080.5,6.295]
[1773160764563,0.58064017,2081.3,2080.5,6.85511195]
[1773160764769,0.58064017,2081.3,2080.6,0.56011195]
[1773160765068,3.99677183,2081.9,2080.6,0.56011195]
[1773160765069,0.58064017,2081.8,2080.6,0.56011195]
[1773160765368,0.58064017,2081.6,2080.6,0.56011195]
[1773160766869,0.58064017,2081.6,2080.7,6.295]
[1773160767066,0.58064017,2081.4,2080.6,0.56011195]
[1773160767266,0.58064017,2081.2,2080.6,0.56011195]
[1773160768669,12.67055382,2081.8,2080.6,0.56011195]
[1773160768670,0.58064017,2081.4,2080.6,0.56011195]
[1773160769268,0.58465282,2081.9,2080.6,0.80036195]
[1773160769573,0.58064017,2081.8,2080.7,0.56011195]
[1773160774871,0.00401265,2081.9,2080.9,3.33097659]
[1773160775071,0.00401265,2081.9,2081.0,0.56011195]
[1773160775277,0.58465282,2081.9,2081.2,0.56011195]
[1773160780080,0.00401265,2081.9,2081.2,0.56011195]
[1773160780383,0.00401265,2081.9,2081.2,0.06011195]
[1773160780778,0.58465282,2081.9,2081.2,0.06011195]
[1773160781278,0.58064017,2081.8,2081.0,0.56541012]
[1773160781480,0.58064017,2081.8,2081.1,6.294]
[1773160784575,0.58064017,2081.6,2081.0,0.00529817]
[1773160784782,0.58064017,2081.2,2080.6,6.294]
[1773160784983,0.58064017,2081.2,2080.6,6.85411195]
[1773160785375,0.58064017,2081.4,2080.7,0.56011195]
[1773160785782,0.58064017,2081.4,2080.7,0.56359689]
[1773160786984,0.24012,2081.7,2080.7,0.56359689]
[1773160786985,0.56637084,2081.6,2080.7,0.56359689]
[1773160787182,0.56637084,2081.6,2080.8,6.294]
[1773160787383,0.56637084,2081.6,2080.9,0.55235083]
[1773160787982,0.56637084,2081.6,2080.7,0.00348494]
[1773160788177,0.56637084,2081.6,2080.8,6.294]
[1773160788786,0.56637084,2081.6,2080.8,6.84635083]
[1773160789282,0.57273824,2081.4,2080.8,6.84635083]
[1773160789678,0.57273824,2081.4,2080.9,0.56054905]
[1773160790990,0.81285824,2081.7,2080.9,0.56054905]
[1773160791187,0.57273824,2081.5,2080.9,0.56054905]
[1773160793191,0.81285824,2081.7,2080.9,0.56054905]
[1773160793393,0.57273824,2081.5,2080.9,0.56054905]
[1773160793892,0.57273824,2081.5,2080.8,6.85454905]
[1773160794093,0.57273824,2081.5,2080.9,0.56054905]
[1773160795689,0.57273824,2081.5,2080.8,6.294]
[1773160795690,0.57273824,2081.5,2080.8,6.85454905]
[1773160795985,0.57273824,2081.5,2080.9,0.56054905]
[1773160796593,6.63079737,2081.4,2080.9,0.56054905]
[1773160796795,0.57273824,2081.3,2080.9,0.56054905]
[1773160798495,0.57273824,2081.3,2080.9,0.53254905]
[1773160800289,0.57273824,2081.3,2080.8,6.294]
[1773160800490,0.57273824,2081.3,2079.9,15.78459436]
[1773160800491,0.57273824,2081.1,2080.4,0.56054905]
[1773160800695,0.57273824,2080.9,2080.5,6.295]
[1773160801498,0.57273824,2080.9,2080.5,6.29865875]
[1773160802201,0.57273824,2080.9,2080.5,6.8592078]
[1773160802399,0.81293824,2081.0,2080.6,0.56054905]
[1773160803201,0.57273824,2080.9,2080.5,6.29865875]
[1773160803402,0.57273824,2080.9,2080.5,6.2902499]
[1773160803803,0.57273824,2080.9,2080.5,6.29865875]
[1773160805202,0.57273824,2080.9,2080.5,6.21865874]
[1773160805804,0.57273824,2080.9,2080.3,0.56054905]
[1773160806101,0.57273824,2080.7,2080.0,6.295]